[Event "*** Titled Tuesday Blitz"]
[Site "Chess.com"]
[Date "2020.04.21"]
[Round "8"]
[White "MikaelyanArman"]
[Black "kungmongmanh"]
[Result "1-0"]
[WhiteElo "2748"]
[BlackElo "2588"]
[TimeControl "180+1"]
[EndTime "11:38:38 PDT"]
[Termination "MikaelyanArman won by resignation"]

1. e4 {[%clk 0:03:00.9]} 1... e6 {[%clk 0:02:47.7]} 2. Nf3 {[%clk 0:02:57.6]}
2... d5 {[%clk 0:02:47.7]} 3. e5 {[%clk 0:02:58.1]} 3... c5 {[%clk 0:02:47.6]}
4. b4 {[%clk 0:02:58.3]} 4... b6 {[%clk 0:02:35.5]} 5. c3 {[%clk 0:02:30.8]}
5... Nc6 {[%clk 0:02:31.4]} 6. b5 {[%clk 0:02:29.3]} 6... Na5 {[%clk 0:02:23.1]}
7. d4 {[%clk 0:02:28.8]} 7... Bd7 {[%clk 0:02:04.9]} 8. Bd3 {[%clk 0:02:24.6]}
8... Rc8 {[%clk 0:01:57.2]} 9. O-O {[%clk 0:02:23.8]} 9... cxd4 {[%clk
0:01:53.9]} 10. cxd4 {[%clk 0:02:19.1]} 10... Nc4 {[%clk 0:01:54]} 11. a4 {[%clk
0:02:06.4]} 11... Ne7 {[%clk 0:01:52.9]} 12. Nbd2 {[%clk 0:01:57]} 12... Nxd2
{[%clk 0:01:36.1]} 13. Bxd2 {[%clk 0:01:57.9]} 13... Nf5 {[%clk 0:01:26.2]} 14.
g4 {[%clk 0:01:40.4]} 14... Nh4 {[%clk 0:01:25.3]} 15. Nxh4 {[%clk 0:01:40]}
15... Qxh4 {[%clk 0:01:26.2]} 16. f4 {[%clk 0:01:40.5]} 16... Qd8 {[%clk
0:01:23.8]} 17. f5 {[%clk 0:01:38.8]} 17... Be7 {[%clk 0:01:23.7]} 18. Qf3
{[%clk 0:01:34.5]} 18... f6 {[%clk 0:00:50.4]} 19. exf6 {[%clk 0:01:27.5]} 19...
Bxf6 {[%clk 0:00:50.5]} 20. fxe6 {[%clk 0:01:17.6]} 20... Bxe6 {[%clk
0:00:48.9]} 21. Rae1 {[%clk 0:01:14.5]} 21... Qe7 {[%clk 0:00:42.4]} 22. Rxe6
{[%clk 0:01:01.9]} 22... Qxe6 {[%clk 0:00:37.3]} 23. Re1 {[%clk 0:00:51.9]}
23... Qxe1+ {[%clk 0:00:31.7]} 24. Bxe1 {[%clk 0:00:52.8]} 24... O-O {[%clk
0:00:31.2]} 25. Qxd5+ {[%clk 0:00:51.8]} 25... Kh8 {[%clk 0:00:30.5]} 26. Bf2
{[%clk 0:00:48.5]} 26... Rce8 {[%clk 0:00:20.3]} 27. Qh5 {[%clk 0:00:47]} 27...
g6 {[%clk 0:00:16.2]} 28. Bxg6 {[%clk 0:00:45.5]} 28... Re7 {[%clk 0:00:12.9]}
29. Bf5 {[%clk 0:00:45.6]} 29... Rg8 {[%clk 0:00:06.9]} 30. Qh6 {[%clk
0:00:38.1]} 30... Bg5 {[%clk 0:00:05.8]} 31. Qd6 {[%clk 0:00:35.9]} 31... Reg7
{[%clk 0:00:04.5]} 32. Bg3 {[%clk 0:00:34.1]} 32... Rd8 {[%clk 0:00:04.9]} 33.
Qe6 {[%clk 0:00:22.3]} 33... Re7 {[%clk 0:00:04.6]} 34. Be5+ {[%clk 0:00:22]}
1-0

[Event "*** Titled Tuesday Blitz"]
[Site "Chess.com"]
[Date "2020.04.21"]
[Round "8"]
[White "kingnb"]
[Black "ferch1ni"]
[Result "1-0"]
[WhiteElo "2450"]
[BlackElo "2310"]
[TimeControl "180+1"]
[EndTime "11:38:38 PDT"]
[Termination "kingnb won on time"]

1. e4 {[%clk 0:02:53.4]} 1... c5 {[%clk 0:02:59.8]} 2. Nf3 {[%clk 0:02:39.1]}
2... Nc6 {[%clk 0:02:59.5]} 3. c3 {[%clk 0:02:38.4]} 3... e5 {[%clk 0:02:59.2]}
4. d4 {[%clk 0:02:37.8]} 4... exd4 {[%clk 0:02:58.8]} 5. cxd4 {[%clk 0:02:38.7]}
5... cxd4 {[%clk 0:02:59.7]} 6. Nxd4 {[%clk 0:02:39.1]} 6... Nf6 {[%clk
0:03:00.4]} 7. Nc3 {[%clk 0:02:39]} 7... Bb4 {[%clk 0:03:01]} 8. f3 {[%clk
0:02:36.4]} 8... d5 {[%clk 0:02:42.1]} 9. Nxc6 {[%clk 0:02:23.2]} 9... bxc6
{[%clk 0:02:38.6]} 10. e5 {[%clk 0:02:18.2]} 10... Nd7 {[%clk 0:02:36.4]} 11. f4
{[%clk 0:02:17.2]} 11... O-O {[%clk 0:02:03.1]} 12. Be3 {[%clk 0:02:11]} 12...
f6 {[%clk 0:01:31.8]} 13. e6 {[%clk 0:02:03.9]} 13... Nc5 {[%clk 0:01:29.3]} 14.
f5 {[%clk 0:02:04.1]} 14... Ne4 {[%clk 0:01:25]} 15. Rc1 {[%clk 0:02:04.2]}
15... Qa5 {[%clk 0:00:49.9]} 16. Bd3 {[%clk 0:01:57.5]} 16... Nxc3 {[%clk
0:00:29.9]} 17. bxc3 {[%clk 0:01:58.4]} 17... Bxc3+ {[%clk 0:00:30.3]} 18. Bd2
{[%clk 0:01:59]} 18... Bxd2+ {[%clk 0:00:20.1]} 19. Qxd2 {[%clk 0:01:59.4]}
19... Qb6 {[%clk 0:00:20.7]} 20. Qf2 {[%clk 0:01:53.2]} 20... c5 {[%clk
0:00:15.9]} 21. Qxc5 {[%clk 0:01:51]} 21... Ba6 {[%clk 0:00:14.7]} 22. Qxb6
{[%clk 0:01:08.1]} 22... axb6 {[%clk 0:00:15.6]} 23. Bxa6 {[%clk 0:01:08.8]}
23... Rxa6 {[%clk 0:00:16.5]} 24. Rc2 {[%clk 0:01:09.4]} 24... d4 {[%clk
0:00:12.1]} 25. O-O {[%clk 0:01:09.3]} 25... Ra5 {[%clk 0:00:12.7]} 26. g4
{[%clk 0:01:08]} 26... h5 {[%clk 0:00:13.3]} 27. h3 {[%clk 0:01:08.3]} 27...
hxg4 {[%clk 0:00:13.5]} 28. hxg4 {[%clk 0:01:08.8]} 28... g6 {[%clk 0:00:14.3]}
29. Rc6 {[%clk 0:01:04.1]} 29... gxf5 {[%clk 0:00:13.7]} 30. Rxf5 {[%clk
0:01:05]} 30... Rxf5 {[%clk 0:00:09.8]} 31. gxf5 {[%clk 0:01:05]} 31... Rd8
{[%clk 0:00:10]} 32. Kf2 {[%clk 0:01:05]} 32... d3 {[%clk 0:00:09.8]} 33. Ke1
{[%clk 0:01:05]} 33... Kf8 {[%clk 0:00:10.2]} 34. Rc7 {[%clk 0:01:04.4]} 34...
Rd5 {[%clk 0:00:09.9]} 35. Rf7+ {[%clk 0:01:03.8]} 35... Ke8 {[%clk 0:00:09.7]}
36. Rxf6 {[%clk 0:01:04.7]} 36... b5 {[%clk 0:00:06.6]} 37. Kd2 {[%clk
0:01:04.4]} 37... Kd8 {[%clk 0:00:05.1]} 38. Rf7 {[%clk 0:01:03.5]} 38... Ke8
{[%clk 0:00:05.7]} 39. a3 {[%clk 0:01:01.8]} 39... Kd8 {[%clk 0:00:04.4]} 40. f6
{[%clk 0:01:00.4]} 40... Ke8 {[%clk 0:00:02.9]} 41. Rh7 {[%clk 0:01:00.3]} 1-0

[Event "*** Titled Tuesday Blitz"]
[Site "Chess.com"]
[Date "2020.04.21"]
[Round "8"]
[White "dpruess"]
[Black "FeketeBarika"]
[Result "1-0"]
[WhiteElo "2446"]
[BlackElo "2273"]
[TimeControl "180+1"]
[EndTime "11:38:40 PDT"]
[Termination "dpruess won by resignation"]

1. d4 {[%clk 0:03:00.9]} 1... e6 {[%clk 0:03:00.9]} 2. e4 {[%clk 0:02:59.5]}
2... d5 {[%clk 0:02:59.8]} 3. Nc3 {[%clk 0:02:59.4]} 3... Bb4 {[%clk 0:02:59.2]}
4. e5 {[%clk 0:02:57.6]} 4... c5 {[%clk 0:02:59.3]} 5. a3 {[%clk 0:02:57.5]}
5... Bxc3+ {[%clk 0:02:58.7]} 6. bxc3 {[%clk 0:02:58.4]} 6... Ne7 {[%clk
0:02:58.9]} 7. h4 {[%clk 0:02:55.5]} 7... Nbc6 {[%clk 0:02:57.5]} 8. h5 {[%clk
0:02:53.3]} 8... h6 {[%clk 0:02:56.6]} 9. Qg4 {[%clk 0:02:34.5]} 9... Kf8 {[%clk
0:02:52.3]} 10. Nf3 {[%clk 0:02:33.1]} 10... c4 {[%clk 0:02:48.5]} 11. Qf4
{[%clk 0:02:16.3]} 11... b6 {[%clk 0:02:46.4]} 12. g4 {[%clk 0:02:12.8]} 12...
Bd7 {[%clk 0:02:35.3]} 13. a4 {[%clk 0:01:50.3]} 13... a5 {[%clk 0:02:25.2]} 14.
Ba3 {[%clk 0:01:47]} 14... Kg8 {[%clk 0:02:20]} 15. Be2 {[%clk 0:01:37.7]} 15...
Na7 {[%clk 0:02:14.4]} 16. Kd2 {[%clk 0:01:32.6]} 16... Nac8 {[%clk 0:02:01.3]}
17. Rhg1 {[%clk 0:01:29]} 17... Qe8 {[%clk 0:01:51.8]} 18. Bb2 {[%clk
0:01:09.4]} 18... Bxa4 {[%clk 0:01:50.4]} 19. Nh4 {[%clk 0:01:08.1]} 19... Bd7
{[%clk 0:01:44.8]} 20. g5 {[%clk 0:01:03.6]} 20... hxg5 {[%clk 0:01:41.5]} 21.
Rxg5 {[%clk 0:01:03.7]} 21... Nf5 {[%clk 0:01:37.7]} 22. Rag1 {[%clk 0:00:58.9]}
22... Nce7 {[%clk 0:01:32.4]} 23. Ba3 {[%clk 0:00:50.5]} 23... Rh7 {[%clk
0:01:29]} 24. Qg4 {[%clk 0:00:33.1]} 24... Qf8 {[%clk 0:01:06.3]} 25. Nxf5
{[%clk 0:00:32.6]} 25... exf5 {[%clk 0:01:04.8]} 26. Qg2 {[%clk 0:00:32.7]}
26... f6 {[%clk 0:01:01.7]} 27. exf6 {[%clk 0:00:20.3]} 27... Qxf6 {[%clk
0:00:58.7]} 28. Bxe7 {[%clk 0:00:20.2]} 28... Qf7 {[%clk 0:00:46.2]} 29. Bd6
{[%clk 0:00:19.3]} 29... Re8 {[%clk 0:00:34.9]} 30. f4 {[%clk 0:00:19.3]} 30...
a4 {[%clk 0:00:31.4]} 31. Be5 {[%clk 0:00:19.3]} 31... Re7 {[%clk 0:00:31.2]}
32. Bf3 {[%clk 0:00:18.3]} 32... Bc6 {[%clk 0:00:29.7]} 33. h6 {[%clk
0:00:17.9]} 33... a3 {[%clk 0:00:20]} 34. Bxg7 {[%clk 0:00:15.9]} 34... Qe6
{[%clk 0:00:11.3]} 35. Bf6+ {[%clk 0:00:14.5]} 35... Kf7 {[%clk 0:00:11.7]} 36.
Bxe7 {[%clk 0:00:14.5]} 36... Qxe7 {[%clk 0:00:11.9]} 37. Rg7+ {[%clk
0:00:14.2]} 37... Rxg7 {[%clk 0:00:11.3]} 38. Qxg7+ {[%clk 0:00:15.1]} 38... Ke8
{[%clk 0:00:11.6]} 39. Re1 {[%clk 0:00:15.2]} 1-0

[Event "*** Titled Tuesday Blitz"]
[Site "Chess.com"]
[Date "2020.04.21"]
[Round "8"]
[White "GMNeiksans"]
[Black "Firehand33"]
[Result "0-1"]
[WhiteElo "2853"]
[BlackElo "2709"]
[TimeControl "180+1"]
[EndTime "11:38:42 PDT"]
[Termination "Firehand33 won on time"]

1. b3 {[%clk 0:03:00.9]} 1... b6 {[%clk 0:02:59.4]} 2. a4 {[%clk 0:02:57.6]}
2... Bb7 {[%clk 0:02:59.8]} 3. a5 {[%clk 0:02:57.1]} 3... Nf6 {[%clk 0:02:56.2]}
4. Nf3 {[%clk 0:02:49.4]} 4... g6 {[%clk 0:02:55.9]} 5. Bb2 {[%clk 0:02:48.5]}
5... Bg7 {[%clk 0:02:55.7]} 6. g3 {[%clk 0:02:44.8]} 6... O-O {[%clk 0:02:49.1]}
7. Bg2 {[%clk 0:02:44.1]} 7... b5 {[%clk 0:02:40.6]} 8. O-O {[%clk 0:02:37.1]}
8... a6 {[%clk 0:02:40.6]} 9. c4 {[%clk 0:02:31]} 9... d6 {[%clk 0:02:36.6]} 10.
Nc3 {[%clk 0:02:23.4]} 10... b4 {[%clk 0:02:30]} 11. Na4 {[%clk 0:02:21]} 11...
e5 {[%clk 0:02:24]} 12. d4 {[%clk 0:02:11.1]} 12... e4 {[%clk 0:02:24.1]} 13.
Ne1 {[%clk 0:02:07.2]} 13... Nbd7 {[%clk 0:02:22.7]} 14. d5 {[%clk 0:01:52.4]}
14... e3 {[%clk 0:02:00.1]} 15. f4 {[%clk 0:01:42.2]} 15... Nc5 {[%clk
0:01:34.6]} 16. Nd3 {[%clk 0:01:41.8]} 16... Nxd3 {[%clk 0:01:25.2]} 17. exd3
{[%clk 0:01:29.6]} 17... Re8 {[%clk 0:01:24]} 18. Re1 {[%clk 0:01:26.1]} 18...
Bc8 {[%clk 0:01:23]} 19. Qc1 {[%clk 0:01:17.9]} 19... Qe7 {[%clk 0:01:10.8]} 20.
Bd4 {[%clk 0:01:13.9]} 20... Ng4 {[%clk 0:01:07.2]} 21. Qb2 {[%clk 0:01:00.6]}
21... Bxd4 {[%clk 0:00:56.4]} 22. Qxd4 {[%clk 0:01:00.7]} 22... Nf2 {[%clk
0:00:45.4]} 23. Ra2 {[%clk 0:00:31.8]} 23... Bf5 {[%clk 0:00:43]} 24. Rae2
{[%clk 0:00:20.7]} 24... Nxd3 {[%clk 0:00:40.4]} 25. Rxe3 {[%clk 0:00:21.1]}
25... Qd7 {[%clk 0:00:33.4]} 26. R1e2 {[%clk 0:00:16.2]} 26... Rxe3 {[%clk
0:00:28.7]} 27. Rxe3 {[%clk 0:00:16.2]} 27... Re8 {[%clk 0:00:27.1]} 28. Bf1
{[%clk 0:00:15.9]} 28... Ne1 {[%clk 0:00:25.2]} 29. Kf2 {[%clk 0:00:09.4]} 29...
Nc2 {[%clk 0:00:25]} 30. Rxe8+ {[%clk 0:00:09.3]} 30... Qxe8 {[%clk 0:00:25.9]}
31. Qd2 {[%clk 0:00:08.3]} 31... Qe4 {[%clk 0:00:23.3]} 32. Bg2 {[%clk
0:00:06.6]} 32... Qd4+ {[%clk 0:00:23.2]} 33. Qxd4 {[%clk 0:00:06.3]} 33... Nxd4
{[%clk 0:00:24.1]} 34. c5 {[%clk 0:00:02.9]} 34... Nxb3 {[%clk 0:00:22.9]} 35.
c6 {[%clk 0:00:02.1]} 35... Nxa5 {[%clk 0:00:21.7]} 36. Ke3 {[%clk 0:00:02]}
36... b3 {[%clk 0:00:21.2]} 0-1

[Event "*** Titled Tuesday Blitz"]
[Site "Chess.com"]
[Date "2020.04.21"]
[Round "8"]
[White "GMKrikor"]
[Black "dragos420"]
[Result "1-0"]
[WhiteElo "2720"]
[BlackElo "2516"]
[TimeControl "180+1"]
[EndTime "11:38:42 PDT"]
[Termination "GMKrikor won on time"]

1. c4 {[%clk 0:03:00.9]} 1... e5 {[%clk 0:02:54.8]} 2. Nc3 {[%clk 0:03:00.5]}
2... Nf6 {[%clk 0:02:50.6]} 3. Nf3 {[%clk 0:02:58.8]} 3... Nc6 {[%clk
0:02:44.6]} 4. e3 {[%clk 0:02:59.1]} 4... Bb4 {[%clk 0:02:43.5]} 5. Qc2 {[%clk
0:02:59]} 5... O-O {[%clk 0:02:43.1]} 6. Nd5 {[%clk 0:02:56]} 6... d6 {[%clk
0:02:42.7]} 7. a3 {[%clk 0:02:45.7]} 7... Bc5 {[%clk 0:02:36.6]} 8. Ng5 {[%clk
0:02:44]} 8... g6 {[%clk 0:02:27.4]} 9. Nxf6+ {[%clk 0:02:32.1]} 9... Qxf6
{[%clk 0:02:28.3]} 10. Ne4 {[%clk 0:02:32.5]} 10... Qe7 {[%clk 0:02:26]} 11. b4
{[%clk 0:02:18.3]} 11... Bb6 {[%clk 0:02:24.3]} 12. Bb2 {[%clk 0:02:18.8]} 12...
Be6 {[%clk 0:02:07.2]} 13. h4 {[%clk 0:02:13.1]} 13... a5 {[%clk 0:01:38.3]} 14.
b5 {[%clk 0:02:00.1]} 14... Nb8 {[%clk 0:01:33.4]} 15. h5 {[%clk 0:02:00.5]}
15... Nd7 {[%clk 0:01:27.5]} 16. hxg6 {[%clk 0:01:58.5]} 16... fxg6 {[%clk
0:01:28.4]} 17. d3 {[%clk 0:01:46.7]} 17... Nc5 {[%clk 0:01:17.8]} 18. Nc3
{[%clk 0:01:26.8]} 18... a4 {[%clk 0:01:15.2]} 19. O-O-O {[%clk 0:01:18]} 19...
c6 {[%clk 0:01:05.5]} 20. Kb1 {[%clk 0:01:18.1]} 20... d5 {[%clk 0:00:58]} 21.
d4 {[%clk 0:00:55.9]} 21... Bf5 {[%clk 0:00:45.8]} 22. e4 {[%clk 0:00:56.2]}
22... Nxe4 {[%clk 0:00:44.4]} 23. Nxe4 {[%clk 0:00:49.1]} 23... Bxe4 {[%clk
0:00:45.3]} 24. Bd3 {[%clk 0:00:49.3]} 24... exd4 {[%clk 0:00:34.4]} 25. cxd5
{[%clk 0:00:40.1]} 25... Bxd5 {[%clk 0:00:21.4]} 26. Rde1 {[%clk 0:00:26.3]}
26... Qf7 {[%clk 0:00:19.3]} 27. f4 {[%clk 0:00:15.5]} 27... c5 {[%clk
0:00:13.2]} 28. f5 {[%clk 0:00:16.1]} 28... gxf5 {[%clk 0:00:06.6]} 29. Re5
{[%clk 0:00:16.7]} 29... c4 {[%clk 0:00:04.4]} 30. Bxf5 {[%clk 0:00:11.8]} 1-0

[Event "*** Titled Tuesday Blitz"]
[Site "Chess.com"]
[Date "2020.04.21"]
[Round "8"]
[White "serhanberat_ozdemir"]
[Black "PredragNikac"]
[Result "0-1"]
[WhiteElo "2388"]
[BlackElo "2284"]
[TimeControl "180+1"]
[EndTime "11:38:42 PDT"]
[Termination "PredragNikac won by resignation"]

1. e4 {[%clk 0:03:00.9]} 1... d5 {[%clk 0:02:57.6]} 2. exd5 {[%clk 0:03:00.8]}
2... Nf6 {[%clk 0:02:57.6]} 3. Nc3 {[%clk 0:02:59.9]} 3... Bg4 {[%clk
0:02:56.5]} 4. Be2 {[%clk 0:02:51.3]} 4... h5 {[%clk 0:02:55.4]} 5. h3 {[%clk
0:02:50.2]} 5... Bxe2 {[%clk 0:02:35]} 6. Qxe2 {[%clk 0:02:46.4]} 6... a6 {[%clk
0:02:30.2]} 7. Nf3 {[%clk 0:02:46.4]} 7... Nxd5 {[%clk 0:02:29.4]} 8. d3 {[%clk
0:02:42.5]} 8... Nxc3 {[%clk 0:02:28.8]} 9. bxc3 {[%clk 0:02:42.6]} 9... e6
{[%clk 0:02:29.1]} 10. Bf4 {[%clk 0:02:41.2]} 10... Nd7 {[%clk 0:02:27.7]} 11.
O-O {[%clk 0:02:38.7]} 11... Qf6 {[%clk 0:02:24]} 12. Bh2 {[%clk 0:02:35.1]}
12... Bd6 {[%clk 0:02:23.5]} 13. Bxd6 {[%clk 0:02:33.9]} 13... cxd6 {[%clk
0:02:23.7]} 14. Rab1 {[%clk 0:02:30.8]} 14... b5 {[%clk 0:02:21.3]} 15. Qe4
{[%clk 0:02:25.3]} 15... d5 {[%clk 0:02:19.4]} 16. Qd4 {[%clk 0:02:21.3]} 16...
Qxd4 {[%clk 0:02:16.1]} 17. Nxd4 {[%clk 0:02:22.2]} 17... Rc8 {[%clk 0:02:09.3]}
18. Rb3 {[%clk 0:02:22.3]} 18... Nc5 {[%clk 0:02:08.9]} 19. Ra3 {[%clk
0:02:22.2]} 19... Ke7 {[%clk 0:02:06.8]} 20. Rb1 {[%clk 0:02:18.5]} 20... e5
{[%clk 0:02:00.3]} 21. Nb3 {[%clk 0:02:17.2]} 21... Rh6 {[%clk 0:01:55.6]} 22.
Re1 {[%clk 0:02:11.9]} 22... Nxb3 {[%clk 0:01:51.3]} 23. Rxb3 {[%clk 0:02:10.7]}
23... Re6 {[%clk 0:01:45.9]} 24. Kf1 {[%clk 0:02:07.8]} 24... f5 {[%clk
0:01:45.2]} 25. a4 {[%clk 0:02:03.9]} 25... bxa4 {[%clk 0:01:44.9]} 26. Ra3
{[%clk 0:02:04.3]} 26... Kf6 {[%clk 0:01:40.7]} 27. Re2 {[%clk 0:01:58.3]} 27...
h4 {[%clk 0:01:37.6]} 28. Rxa4 {[%clk 0:01:55.3]} 28... Rxc3 {[%clk 0:01:36.3]}
29. Rxh4 {[%clk 0:01:55.8]} 29... Rec6 {[%clk 0:01:33.1]} 30. Ra4 {[%clk
0:01:53.1]} 30... f4 {[%clk 0:01:26.4]} 31. Ra2 {[%clk 0:01:49.1]} 31... g5
{[%clk 0:01:22.5]} 32. Ke1 {[%clk 0:01:49]} 32... Kf5 {[%clk 0:01:19.8]} 33. f3
{[%clk 0:01:47.3]} 33... R6c5 {[%clk 0:01:10.4]} 34. Kd2 {[%clk 0:01:39.9]}
34... a5 {[%clk 0:01:08.7]} 35. Re1 {[%clk 0:01:38.8]} 35... a4 {[%clk
0:01:05.6]} 36. Rc1 {[%clk 0:01:34.9]} 36... a3 {[%clk 0:01:05.2]} 37. Re1
{[%clk 0:01:28.5]} 37... d4 {[%clk 0:01:04]} 38. Rb1 {[%clk 0:01:24.9]} 38...
Kg6 {[%clk 0:01:00.6]} 39. Rb6+ {[%clk 0:01:24.4]} 39... Kh5 {[%clk 0:01:00.7]}
40. Ra6 {[%clk 0:01:11.6]} 40... Kh4 {[%clk 0:00:59.5]} 41. R6xa3 {[%clk
0:01:11.4]} 41... Rxa3 {[%clk 0:00:58.7]} 42. Rxa3 {[%clk 0:01:12.3]} 42... Kg3
{[%clk 0:00:59.3]} 43. Ra6 {[%clk 0:01:02]} 43... Kxg2 {[%clk 0:00:56.8]} 44.
Rg6 {[%clk 0:01:02.6]} 44... e4 {[%clk 0:00:50.9]} 45. fxe4 {[%clk 0:00:57.6]}
45... f3 {[%clk 0:00:50.9]} 46. c3 {[%clk 0:00:26.6]} 46... dxc3+ {[%clk
0:00:50.3]} 47. Kc2 {[%clk 0:00:25]} 47... f2 {[%clk 0:00:49.7]} 48. Rf6 {[%clk
0:00:24.8]} 48... f1=Q {[%clk 0:00:44.7]} 49. Rxf1 {[%clk 0:00:25.7]} 49... Kxf1
{[%clk 0:00:45.3]} 50. d4 {[%clk 0:00:24.3]} 50... Rc4 {[%clk 0:00:45.4]} 51.
Kd3 {[%clk 0:00:19.9]} 51... Rxd4+ {[%clk 0:00:42.8]} 52. Kxd4 {[%clk
0:00:20.1]} 52... c2 {[%clk 0:00:42.9]} 0-1

[Event "*** Titled Tuesday Blitz"]
[Site "Chess.com"]
[Date "2020.04.21"]
[Round "8"]
[White "pgradalski"]
[Black "JoachimMouhamad"]
[Result "0-1"]
[WhiteElo "2214"]
[BlackElo "2359"]
[TimeControl "180+1"]
[EndTime "11:38:42 PDT"]
[Termination "JoachimMouhamad won on time"]

1. e4 {[%clk 0:03:00.9]} 1... c5 {[%clk 0:02:54.6]} 2. c3 {[%clk 0:03:00.3]}
2... Nf6 {[%clk 0:02:46.3]} 3. e5 {[%clk 0:02:56.2]} 3... Nd5 {[%clk 0:02:45.1]}
4. d4 {[%clk 0:02:55.9]} 4... cxd4 {[%clk 0:02:40.7]} 5. cxd4 {[%clk 0:02:54.2]}
5... d6 {[%clk 0:02:38.5]} 6. Nf3 {[%clk 0:02:25.9]} 6... Nc6 {[%clk 0:02:34.7]}
7. Nc3 {[%clk 0:02:23.9]} 7... dxe5 {[%clk 0:02:31]} 8. Nxe5 {[%clk 0:01:56.9]}
8... Nxc3 {[%clk 0:02:15.2]} 9. Nxc6 {[%clk 0:01:13.2]} 9... Nxd1 {[%clk
0:02:10.7]} 10. Nxd8 {[%clk 0:01:12.7]} 10... Kxd8 {[%clk 0:02:03.9]} 11. Kxd1
{[%clk 0:01:11.4]} 11... Bg4+ {[%clk 0:02:00.8]} 12. f3 {[%clk 0:01:09.8]} 12...
Bf5 {[%clk 0:01:58.2]} 13. Bc4 {[%clk 0:01:04.9]} 13... e6 {[%clk 0:01:56.9]}
14. Be3 {[%clk 0:01:02.5]} 14... Rc8 {[%clk 0:01:50.8]} 15. Bb3 {[%clk
0:01:02.3]} 15... Bb4 {[%clk 0:01:28.6]} 16. Ke2 {[%clk 0:00:48.4]} 16... Ke7
{[%clk 0:01:21.9]} 17. Rac1 {[%clk 0:00:45]} 17... b6 {[%clk 0:01:05.2]} 18. d5
{[%clk 0:00:32.1]} 18... e5 {[%clk 0:00:58.5]} 19. a3 {[%clk 0:00:25.4]} 19...
Bd6 {[%clk 0:00:57.2]} 20. Bc4 {[%clk 0:00:18.7]} 20... Bd7 {[%clk 0:00:51.2]}
21. Ba6 {[%clk 0:00:17.6]} 21... Rxc1 {[%clk 0:00:50.5]} 22. Rxc1 {[%clk
0:00:17]} 22... f5 {[%clk 0:00:50.4]} 23. g3 {[%clk 0:00:12.4]} 23... h6 {[%clk
0:00:49]} 24. b4 {[%clk 0:00:10]} 24... g5 {[%clk 0:00:48.3]} 25. f4 {[%clk
0:00:06.9]} 25... gxf4 {[%clk 0:00:44.8]} 26. gxf4 {[%clk 0:00:06.7]} 26... exf4
{[%clk 0:00:41.5]} 27. Bd4 {[%clk 0:00:06.7]} 27... Rg8 {[%clk 0:00:39.8]} 28.
Rf1 {[%clk 0:00:06.4]} 28... Rg2+ {[%clk 0:00:38.4]} 29. Rf2 {[%clk 0:00:06.7]}
29... Rg4 {[%clk 0:00:27.7]} 30. Kf3 {[%clk 0:00:05.9]} 30... Kf7 {[%clk
0:00:23.9]} 31. Re2 {[%clk 0:00:04]} 31... h5 {[%clk 0:00:23.6]} 32. Bb7 {[%clk
0:00:02.6]} 32... h4 {[%clk 0:00:22]} 33. Bc6 {[%clk 0:00:01.1]} 33... Bc8
{[%clk 0:00:17.6]} 0-1

[Event "*** Titled Tuesday Blitz"]
[Site "Chess.com"]
[Date "2020.04.21"]
[Round "8"]
[White "Kaponov"]
[Black "crossingthestreet"]
[Result "0-1"]
[WhiteElo "2120"]
[BlackElo "2260"]
[TimeControl "180+1"]
[EndTime "11:38:42 PDT"]
[Termination "crossingthestreet won by resignation"]

1. d4 {[%clk 0:03:00.9]} 1... e6 {[%clk 0:03:00.3]} 2. c4 {[%clk 0:03:01.4]}
2... Nf6 {[%clk 0:02:51.4]} 3. Nf3 {[%clk 0:03:01.2]} 3... d5 {[%clk 0:02:46.5]}
4. g3 {[%clk 0:03:00.8]} 4... Be7 {[%clk 0:02:45.7]} 5. Bg2 {[%clk 0:03:01.2]}
5... O-O {[%clk 0:02:43]} 6. O-O {[%clk 0:03:01.7]} 6... dxc4 {[%clk 0:02:35.1]}
7. Qc2 {[%clk 0:03:01.9]} 7... a6 {[%clk 0:02:31]} 8. a4 {[%clk 0:03:02.4]} 8...
Bd7 {[%clk 0:02:29.2]} 9. Qxc4 {[%clk 0:03:02.7]} 9... Bc6 {[%clk 0:02:29.1]}
10. Bg5 {[%clk 0:02:58.5]} 10... Nbd7 {[%clk 0:02:27.8]} 11. Nc3 {[%clk
0:02:57.4]} 11... a5 {[%clk 0:02:26.2]} 12. Qd3 {[%clk 0:02:48.2]} 12... Bxf3
{[%clk 0:02:19]} 13. Bxf3 {[%clk 0:02:46.6]} 13... c6 {[%clk 0:02:19.2]} 14. e4
{[%clk 0:02:43.4]} 14... Ne5 {[%clk 0:02:15.6]} 15. Qe3 {[%clk 0:02:36.1]} 15...
Qxd4 {[%clk 0:02:08.1]} 16. Qxd4 {[%clk 0:02:32.4]} 16... Nxf3+ {[%clk
0:02:07.8]} 17. Kg2 {[%clk 0:02:33.3]} 17... Nxd4 {[%clk 0:02:08.3]} 18. Rad1
{[%clk 0:02:33.2]} 18... e5 {[%clk 0:02:05]} 19. f4 {[%clk 0:02:29.5]} 19... Bd6
{[%clk 0:01:49.3]} 20. fxe5 {[%clk 0:01:56.2]} 20... Bxe5 {[%clk 0:01:48.7]} 21.
Bf4 {[%clk 0:01:57.1]} 21... Bxf4 {[%clk 0:01:42.3]} 22. gxf4 {[%clk 0:01:57.5]}
22... c5 {[%clk 0:01:12]} 23. e5 {[%clk 0:01:43.5]} 23... Ng4 {[%clk 0:00:58.9]}
24. Rd3 {[%clk 0:01:43.6]} 24... Rad8 {[%clk 0:00:47.3]} 25. Ne4 {[%clk
0:01:42.6]} 25... c4 {[%clk 0:00:45.5]} 26. Rg3 {[%clk 0:01:41.5]} 26... Nf5
{[%clk 0:00:40.9]} 27. Rc1 {[%clk 0:00:59]} 27... Nxg3 {[%clk 0:00:37.3]} 28.
Kxg3 {[%clk 0:00:59.2]} 28... Ne3 {[%clk 0:00:36.6]} 29. Kf3 {[%clk 0:00:58.9]}
29... Nf5 {[%clk 0:00:18]} 30. Rxc4 {[%clk 0:00:52.9]} 30... Rc8 {[%clk
0:00:18.3]} 31. b3 {[%clk 0:00:46.1]} 31... Rxc4 {[%clk 0:00:17.3]} 32. bxc4
{[%clk 0:00:47]} 32... Rc8 {[%clk 0:00:17.6]} 33. c5 {[%clk 0:00:47.5]} 33...
Ne7 {[%clk 0:00:16.6]} 34. Ke2 {[%clk 0:00:47]} 34... Nd5 {[%clk 0:00:15.6]} 35.
f5 {[%clk 0:00:46.9]} 35... f6 {[%clk 0:00:10.9]} 36. e6 {[%clk 0:00:45.9]}
36... Ne7 {[%clk 0:00:11]} 37. Kd3 {[%clk 0:00:33.5]} 37... Nxf5 {[%clk
0:00:11.1]} 38. Nd6 {[%clk 0:00:34.4]} 38... Nxd6 {[%clk 0:00:10.5]} 39. cxd6
{[%clk 0:00:34.8]} 39... Rc6 {[%clk 0:00:09.8]} 40. d7 {[%clk 0:00:32.4]} 40...
Rd6+ {[%clk 0:00:09.9]} 41. Kc4 {[%clk 0:00:31.2]} 41... Kf8 {[%clk 0:00:10.6]}
42. Kc5 {[%clk 0:00:22.7]} 42... Ke7 {[%clk 0:00:10.8]} 0-1